bitfinex/quotes_ETHUSD_20250524
["timestamp","ask_amount","ask_price","bid_price","bid_amount"]
[1748119955690,0.7813,2545.9,2545.5,11.758]
[1748119956576,0.7813,2545.9,2545.4,1.84512358]
[1748119956779,0.78143233,2545.8,2545.5,11.758]
[1748119957287,0.78143233,2545.8,2545.4,1.84512358]
[1748119957600,2.35656227,2545.8,2545.4,1.84512358]
[1748119957905,2.35656227,2545.8,2545.5,11.758]
[1748119958797,2.35656227,2545.8,2545.4,1.84512358]
[1748119958989,2.35656227,2545.8,2545.6,11.758]
[1748119959192,2.35656227,2545.8,2545.7,49.655]
[1748119959386,0.78143233,2545.8,2545.4,1.84512358]
[1748119959688,6.23932571,2545.8,2545.3,1.84512358]
[1748119959863,0.83040852,2545.9,2545.5,11.758]
[1748119959864,6.1648668,2545.7,2545.5,11.758]
[1748119962603,1.57077896,2545.6,2545.5,11.758]
[1748119963065,1.57077896,2545.6,2545.5,13.60312358]
[1748119963802,1.57077896,2545.6,2545.5,13.96002358]
[1748119965091,1.57077896,2545.6,2545.5,21.96002358]
[1748119967702,5.45789338,2545.7,2545.6,8.0]
[1748119969130,5.45789338,2545.7,2545.6,23.516]
[1748119969431,5.45789338,2545.7,2545.6,14.381]
[1748119971329,1.96974837,2545.8,2545.6,14.381]
[1748119971505,1.96974837,2545.8,2545.7,1.84512358]
[1748119973428,5.45789338,2546.0,2545.7,1.84512358]
[1748119973734,7.07551684,2546.0,2545.7,1.84512358]
[1748119974233,7.07551684,2546.0,2545.7,0.53266629]
[1748119974396,7.07551684,2546.0,2545.9,1.84512358]
[1748119978098,8.65073023,2546.0,2545.9,1.84512358]
[1748119979132,8.65073023,2546.0,2545.9,39.74012358]
[1748119981032,8.65073023,2546.0,2545.9,16.22512358]
[1748119981908,8.65073023,2546.0,2545.9,1.84512358]
[1748119982835,8.65073023,2546.0,2545.9,13.60312358]
[1748119986145,7.03310677,2546.0,2545.9,13.60312358]
[1748119989248,7.03310677,2546.0,2545.9,27.98212358]
[1748119989602,7.03310677,2546.0,2545.9,27.61392716]
[1748119989854,7.03310677,2546.0,2545.9,13.23492716]
[1748119991732,7.03310677,2546.0,2545.9,13.60420497]
[1748119994262,7.03310677,2546.0,2545.9,0.53387295]
[1748119994857,1.57521339,2546.0,2545.9,0.53387295]
[1748119995446,1.57521339,2546.0,2545.9,12.29087295]
[1748119996562,1.57521339,2546.0,2545.9,12.65781901]
[1748119999159,1.57521339,2546.0,2545.9,50.55081901]
[1748120001659,3.55261858,2546.0,2545.9,12.65781901]
[1748120003964,3.55261858,2546.0,2545.9,0.90081901]
[1748120004161,3.55261858,2546.0,2545.9,12.65681901]
[1748120009282,3.55261858,2546.0,2545.9,50.54681901]
[1748120009989,3.55261858,2546.0,2545.9,27.03481901]
[1748120011689,1.57521339,2546.0,2545.9,27.97777926]
[1748120013994,1.57521339,2546.0,2545.9,13.59977926]
[1748120015191,1.57521339,2546.0,2545.9,0.53152195]
[1748120016596,1.57521339,2546.0,2545.9,12.28752195]
[1748120019199,1.57521339,2546.0,2545.9,50.17452195]
[1748120021214,3.5529984,2546.0,2545.9,50.17452195]
[1748120021369,3.5529984,2546.0,2545.9,12.28752195]
[1748120024305,1.57521339,2546.0,2545.9,12.28752195]
[1748120029196,1.57521339,2546.0,2545.9,50.17452195]
[1748120032520,1.57521339,2546.0,2545.9,26.66352195]
[1748120034411,1.57521339,2546.0,2545.9,12.28752195]
[1748120036187,1.57521339,2546.0,2545.9,1.4768332]
[1748120037314,1.57521339,2546.0,2545.9,13.2328332]
[1748120039114,1.57521339,2546.0,2545.9,19.8158332]
[1748120039408,1.57521339,2546.0,2545.9,27.6088332]
[1748120041418,1.57521339,2546.0,2545.9,13.2328332]
[1748120048038,1.57521339,2546.0,2545.9,15.56010857]
[1748120048248,1.57521339,2546.0,2545.9,13.5897332]
[1748120048936,1.57521339,2546.0,2545.6,2.30193284]
[1748120049248,1.81048473,2546.0,2545.9,1.4768332]
[1748120049751,1.57521339,2546.0,2545.9,1.4768332]
[1748120051242,1.57521339,2546.0,2545.9,1.84398256]
[1748120053436,1.57521339,2546.0,2545.9,1.84398256]
[1748120054850,1.57521339,2546.0,2545.9,1.86362112]
[1748120055045,1.57521339,2546.0,2545.9,1.84398256]
[1748120059151,1.57521339,2546.0,2545.9,39.72798256]
[1748120061654,1.57521339,2546.0,2545.9,47.72798256]
[1748120062205,1.57521339,2546.0,2545.9,9.84398256]
[1748120064669,1.57521339,2546.0,2545.9,21.59998256]
[1748120069275,1.57521339,2546.0,2545.9,35.97298256]
[1748120070476,1.57521339,2546.0,2545.9,21.59998256]
[1748120071780,1.57521339,2546.0,2545.9,21.59898256]
[1748120074478,1.57521339,2546.0,2545.9,9.84398256]
[1748120074670,1.81485473,2546.0,2545.9,21.59898256]
[1748120079083,1.81485473,2546.0,2545.9,20.2867051]
[1748120079289,1.81485473,2546.0,2545.9,34.6557051]
[1748120081496,1.81485473,2546.0,2545.9,20.2867051]
[1748120085325,1.81485473,2546.0,2545.9,8.5317051]
[1748120085599,1.81485473,2546.0,2545.9,20.2877051]
[1748120087631,1.57521339,2546.0,2545.9,20.2877051]
[1748120087833,1.57521339,2546.0,2545.9,8.5317051]
[1748120088133,1.57521339,2546.0,2545.9,20.2877051]
[1748120088314,1.57521339,2546.0,2545.9,8.5317051]
[1748120088526,1.57521339,2546.0,2545.9,20.2877051]
[1748120088737,1.81485473,2546.0,2545.9,20.2877051]
[1748120088922,1.81485473,2546.0,2545.9,8.5317051]
[1748120089125,1.81485473,2546.0,2545.9,58.1687051]
[1748120090437,1.57521339,2546.0,2545.9,58.1687051]
[1748120093147,1.57521339,2546.0,2545.9,20.2877051]
[1748120099260,1.57521339,2546.0,2545.9,58.1697051]
[1748120099779,1.57521339,2546.0,2545.9,34.6577051]
[1748120099930,1.57521339,2546.0,2545.9,20.2877051]
[1748120101049,1.57521339,2546.0,2545.9,18.9754471]
[1748120101353,1.57521339,2546.0,2545.9,20.4522803]
[1748120102142,1.57521339,2546.0,2545.9,8.6962803]
[1748120102454,1.57521339,2546.0,2545.9,20.4522803]
[1748120103855,1.57521339,2546.0,2545.9,8.6962803]
[1748120104054,1.57521339,2546.0,2545.9,20.4522803]
[1748120104239,1.57521339,2546.0,2545.9,8.6962803]
[1748120104415,1.57521339,2546.0,2545.9,20.4522803]
[1748120104754,1.57521339,2546.0,2545.9,8.6962803]
[1748120104955,1.57521339,2546.0,2545.9,20.4522803]
[1748120105832,1.57521339,2546.0,2545.9,8.6962803]
[1748120106038,1.57521339,2546.0,2545.9,20.4522803]
[1748120109171,1.57521339,2546.0,2545.9,58.3302803]
[1748120111164,1.57521339,2546.0,2545.9,20.8091803]
[1748120113243,3.0381396,2546.6,2546.0,0.3569]
[1748120113567,3.0381396,2546.6,2546.5,1.8337332]
[1748120113770,3.0381396,2546.6,2546.5,13.5897332]
[1748120113966,2.56979837,2546.6,2546.5,13.95636296]
[1748120116634,2.56979837,2546.6,2546.5,21.95636296]
[1748120116985,1.98076812,2546.6,2546.5,21.95636296]
[1748120119057,1.98076812,2547.0,2546.5,21.95636296]
[1748120119368,1.98076812,2547.0,2546.9,1.4768332]
[1748120119700,2.17884493,2547.0,2546.9,0.36662976]
[1748120119993,2.17884493,2547.0,2546.9,13.59746296]
[1748120121356,0.19807681,2547.0,2546.9,13.59746296]
[1748120121555,0.7534,2547.1,2546.9,13.59746296]
[1748120121755,0.7534,2547.1,2546.9,12.12062976]
[1748120122152,0.7534,2547.1,2547.0,0.36662976]
[1748120122479,2.73416812,2547.1,2547.0,0.36662976]
[1748120122881,2.76646812,2547.1,2547.0,0.36662976]
[1748120123083,0.7857,2547.0,2546.5,1.84526278]
[1748120124153,0.7857,2547.0,2546.6,11.753]
[1748120124383,5.45789338,2546.9,2546.6,11.753]
[1748120124590,0.7857,2546.8,2546.6,11.753]
[1748120126396,0.7857,2546.8,2546.7,1.84526278]
[1748120126760,7.43127268,2546.9,2546.7,1.84526278]
[1748120129294,7.43127268,2546.9,2546.8,37.867]
[1748120129595,7.43127268,2546.9,2546.8,14.362]
[1748120130405,1.9733793,2546.9,2546.8,14.362]
[1748120130981,1.9733793,2547.2,2546.8,14.362]
[1748120131181,2.79603657,2547.2,2547.0,1.84526278]
[1748120132547,0.82265727,2547.2,2547.0,1.84526278]
[1748120132712,1.9733793,2547.3,2547.0,1.84526278]
[1748120133010,1.9733793,2547.3,2547.2,1.84526278]
[1748120134010,8.26107268,2547.4,2547.2,1.84526278]
[1748120135313,8.26107268,2547.4,2547.3,11.753]
[1748120135525,8.26107268,2547.4,2547.3,12.11855943]
[1748120136138,9.08717995,2547.4,2547.3,12.11855943]
[1748120137845,9.08717995,2547.4,2547.3,0.36555943]
[1748120138044,9.08717995,2547.4,2547.3,12.11755943]
[1748120138587,10.65963156,2547.4,2547.3,12.11755943]
[1748120139194,10.65963156,2547.4,2547.3,49.99655943]
[1748120140062,10.65963156,2547.4,2547.3,26.49255943]
[1748120140263,10.65963156,2547.4,2547.3,12.11755943]
[1748120142490,8.68625226,2547.4,2547.3,12.11755943]
[1748120143093,8.68625226,2547.4,2547.2,0.8990815]
[1748120143277,0.86862523,2547.3,2547.2,0.8990815]
[1748120144368,0.86862523,2547.3,2547.2,12.6500815]
[1748120147356,4.41423618,2547.3,2547.2,12.6500815]
[1748120149199,4.41423618,2547.3,2547.2,50.5260815]
[1748120149500,4.41423618,2547.3,2547.2,12.6500815]
[1748120150078,4.41423618,2547.3,2547.2,0.8990815]
[1748120150402,4.41423618,2547.3,2547.2,12.6500815]
[1748120151306,4.41423618,2547.3,2547.2,0.8990815]
[1748120151606,4.41423618,2547.3,2547.2,12.6500815]
[1748120153412,4.41423618,2547.3,2547.2,0.8990815]
[1748120153612,4.41423618,2547.3,2547.2,12.6500815]
[1748120153915,2.44107684,2547.3,2547.2,12.6500815]
[1748120155219,2.44107684,2547.3,2547.2,0.8990815]
[1748120155586,2.44107684,2547.3,2547.2,12.6500815]
[1748120155801,2.44107684,2547.3,2547.2,13.2267228]
[1748120157410,2.44107684,2547.3,2547.2,1.4757228]
[1748120157618,2.44107684,2547.3,2547.2,13.2267228]
[1748120159121,2.44107684,2547.3,2547.2,19.8067228]
[1748120159331,2.44107684,2547.3,2547.2,51.1027228]
[1748120159619,2.44107684,2547.3,2547.2,27.6007228]
[1748120162609,2.44107684,2547.3,2547.2,13.2267228]
[1748120163423,2.44107684,2547.3,2547.2,11.91502587]
[1748120166926,2.44107684,2547.3,2547.2,0.16402587]
[1748120167226,2.44107684,2547.3,2547.2,11.91502587]
[1748120169326,3.25157684,2547.3,2547.2,26.109]
[1748120170527,3.25157684,2547.3,2547.2,11.751]
[1748120171229,3.25157684,2547.3,2547.2,13.2267228]
[1748120172395,3.30065099,2547.3,2547.2,13.2267228]
[1748120172795,3.25157684,2547.3,2547.2,13.2267228]
[1748120174302,3.300651,2547.3,2547.2,13.2267228]
[1748120174517,3.25157684,2547.3,2547.2,13.2267228]
[1748120174716,2.44107684,2547.3,2547.2,13.2267228]
[1748120175832,4.54820115,2547.3,2547.2,13.2267228]
[1748120179199,4.54820115,2547.3,2547.2,51.0877228]
[1748120179665,3.67957592,2547.3,2547.2,51.0877228]
[1748120181063,3.67957592,2547.3,2547.2,13.2267228]
[1748120181466,3.67957592,2547.3,2547.2,13.59374562]
[1748120181652,1.57245161,2547.3,2547.2,13.59374562]
[1748120185450,1.57245161,2547.3,2547.2,1.84274562]
[1748120186676,1.57245161,2547.3,2547.2,15.42636842]
[1748120189183,1.57245161,2547.3,2547.2,53.28636842]
[1748120191875,1.57245161,2547.3,2547.2,15.06946842]
[1748120192270,1.57245161,2547.3,2547.2,13.59374562]
[1748120195399,2.40315161,2547.3,2547.2,0.36702282]
[1748120195613,0.8307,2547.1,2546.4,0.46819964]
[1748120195910,0.8307,2547.0,2546.5,11.751]
[1748120196113,5.50697693,2547.0,2546.3,1.4757228]
[1748120196301,0.7767,2546.9,2546.4,11.751]
[1748120196611,0.7767,2546.7,2546.4,11.751]
[1748120198069,0.7767,2546.7,2546.5,11.751]
[1748120199000,1.57245161,2546.6,2546.5,11.751]
[1748120199170,1.57245161,2546.6,2546.5,49.612]
[1748120199370,1.87020354,2546.6,2546.5,49.612]
[1748120200169,1.87020354,2546.6,2546.3,1.84623536]
[1748120200309,1.87020354,2546.6,2546.5,26.109]
[1748120200499,1.87020354,2546.6,2546.5,11.752]
[1748120200692,1.87020354,2546.6,2546.3,1.84623536]
[1748120200899,0.26469035,2546.5,2546.4,11.752]
[1748120202620,0.26469035,2546.5,2546.3,1.84623536]
[1748120202915,0.26469035,2546.5,2546.4,11.753]
[1748120203721,1.83714196,2546.5,2546.4,11.753]
[1748120205022,1.83714196,2546.5,2546.3,1.84623536]
[1748120205197,3.81191972,2546.5,2546.4,11.753]
[1748120205396,3.81191972,2546.5,2546.3,0.53408036]
[1748120205618,0.38119197,2546.4,2546.3,0.53408036]
[1748120206038,0.38119197,2546.4,2546.1,1.84623536]
[1748120206699,0.38119197,2546.4,2546.2,11.753]
[1748120208429,2.35596973,2546.4,2546.2,11.753]
[1748120209120,2.35596973,2546.4,2546.3,23.508]
[1748120209299,2.35596973,2546.4,2546.3,27.96023536]
[1748120209500,3.17856973,2546.4,2546.3,27.96023536]
[1748120211429,3.17856973,2546.4,2546.3,13.60023536]
[1748120212628,3.17856973,2546.4,2546.3,1.84623536]
[1748120212866,3.17856973,2546.4,2546.3,13.60023536]
[1748120213064,4.75126559,2546.4,2546.3,13.60023536]
[1748120215363,4.75126559,2546.4,2546.3,13.60123536]
[1748120219169,4.75126559,2546.4,2546.3,51.47123536]
[1748120219366,4.75126559,2546.4,2546.3,27.96223536]
[1748120219776,1.20379197,2546.4,2546.3,27.96223536]
[1748120221270,1.20379197,2546.4,2546.3,13.60123536]
[1748120222971,1.97477776,2546.5,2546.3,13.60123536]
[1748120225994,0.8166,2546.4,2546.1,1.84623536]
[1748120226193,0.8166,2546.4,2546.2,11.755]
[1748120226357,0.8166,2546.4,2546.1,1.84623536]
[1748120226559,0.8166,2546.4,2546.2,11.755]
[1748120226772,1.09573778,2546.4,2546.1,0.53408011]
[1748120227717,1.09573778,2546.4,2546.2,0.36694728]
[1748120228087,1.09573778,2546.4,2546.3,11.755]
[1748120228401,3.07051554,2546.4,2546.3,12.12194728]
[1748120229188,3.07051554,2546.4,2546.3,49.99094728]
[1748120229698,3.07051554,2546.4,2546.3,0.36694728]
[1748120229995,3.07051554,2546.4,2546.3,26.48094728]
[1748120230574,4.64086637,2546.4,2546.3,26.48094728]
[1748120230975,4.64086637,2546.4,2546.3,0.36694728]
[1748120231175,4.64086637,2546.4,2546.3,12.12194728]
[1748120232487,4.64086637,2546.4,2546.3,0.36694728]
[1748120232691,2.66608861,2546.4,2546.3,12.12194728]
[1748120233104,2.66608861,2546.4,2546.3,11.755]
[1748120233313,0.808,2546.3,2545.7,1.84623536]
[1748120233623,0.808,2546.3,2545.8,11.755]
[1748120233624,0.26574886,2546.2,2545.8,11.755]
[1748120235724,0.26574886,2546.2,2545.7,1.84623536]
[1748120235902,0.26574886,2546.2,2545.9,11.756]
[1748120236430,1.57035083,2546.1,2545.9,11.756]
[1748120236832,1.57035083,2546.1,2545.9,13.60223536]
[1748120237891,1.57035083,2546.1,2546.0,11.756]
[1748120238125,1.8347608,2546.1,2546.0,11.756]
[1748120238540,0.26440997,2546.1,2546.0,11.756]
[1748120238836,0.26574886,2546.2,2546.0,11.756]
[1748120239125,0.26574886,2546.2,2546.1,37.873]
[1748120240328,1.57225264,2546.1,2546.0,11.756]
[1748120240526,1.57225264,2546.1,2546.0,13.60223536]
[1748120245098,1.57225264,2546.1,2546.0,15.80537072]
[1748120246910,1.57225264,2546.1,2546.0,2.42294354]
[1748120247262,1.57225264,2546.1,2546.0,4.63552608]
[1748120248166,1.57225264,2546.1,2546.0,16.39152608]
[1748120248659,1.9740525,2546.3,2546.0,16.39152608]
[1748120248857,1.9740525,2546.3,2546.2,1.84623536]
[1748120249149,1.9740525,2546.3,2546.2,40.08558254]
[1748120249463,1.9740525,2546.3,2546.2,40.30539072]
[1748120251111,1.9740525,2546.3,2546.2,16.79339072]
[1748120251711,3.54760066,2546.3,2546.2,16.79339072]
[1748120253110,3.54760066,2546.3,2546.2,2.43239072]
[1748120253316,3.54760066,2546.3,2546.2,14.18739072]
[1748120256266,1.57354816,2546.3,2546.2,14.18739072]
[1748120259162,1.57354816,2546.3,2546.2,28.54539072]
[1748120260958,3.54716803,2546.3,2546.2,28.54539072]
[1748120261162,3.54716803,2546.3,2546.2,14.18739072]
[1748120268593,2.93424758,2546.3,2546.2,14.54429072]
[1748120268731,2.93424758,2546.3,2546.2,12.69805536]
[1748120268928,2.93424758,2546.3,2546.2,2.78929072]
[1748120269225,2.93424758,2546.3,2546.2,52.41129072]
[1748120270687,6.12,2546.7,2546.2,52.41129072]
[1748120270688,1.97361987,2546.5,2546.2,14.54329072]
[1748120271338,1.97361987,2546.5,2546.3,0.21980818]
[1748120271534,1.97361987,2546.5,2546.4,0.36634718]
[1748120271860,3.59108186,2546.5,2546.4,0.36634718]
[1748120272062,3.59108186,2546.5,2546.4,12.12034718]
[1748120272267,2.78298186,2546.5,2546.4,13.96658254]
[1748120272468,1.97361987,2546.5,2546.4,14.18639072]
[1748120274686,1.97361987,2546.5,2546.4,2.43239072]
[1748120274886,1.97361987,2546.5,2546.4,14.18639072]
[1748120277495,1.97361987,2546.5,2546.4,14.54329072]
[1748120277673,8.2172222,2547.0,2546.9,1.84623536]
[1748120278191,8.2172222,2547.0,2546.9,2.43239072]
[1748120278487,8.2172222,2547.0,2546.9,2.06604354]
[1748120278635,6.12,2547.0,2546.9,2.06604354]
[1748120279335,6.12,2547.0,2546.9,39.92904354]
[1748120281470,6.12,2547.0,2546.9,2.06604354]
[1748120283502,6.12,2547.4,2546.9,2.06604354]
[1748120283654,6.81017,2547.4,2547.3,1.84623536]
[1748120283854,6.81017,2547.4,2547.3,13.59823536]
[1748120284315,6.81017,2547.4,2547.3,13.81804354]
[1748120286886,8.38248563,2547.4,2547.3,13.81804354]
[1748120287289,8.38248563,2547.4,2547.3,11.97180818]
[1748120288823,8.38248563,2547.4,2547.3,0.21980818]
[1748120289119,8.38248563,2547.4,2547.3,35.47480818]
[1748120289420,8.38248563,2547.4,2547.3,49.91980818]
[1748120289740,8.38248563,2547.4,2547.3,0.21980818]
[1748120289939,9.19768563,2547.4,2547.3,26.41680818]
[1748120290232,9.19768563,2547.4,2547.3,11.752]
[1748120290594,0.8152,2547.3,2546.7,1.84623536]
[1748120290791,0.8152,2547.1,2546.8,11.752]
[1748120291034,6.12,2547.0,2546.9,11.752]
[1748120291538,6.9352,2547.0,2546.9,11.752]
[1748120293031,8.50751563,2547.0,2546.9,11.752]
[1748120293237,9.65986472,2547.0,2546.9,11.752]
[1748120293534,9.65986472,2547.0,2546.5,1.84623536]
[1748120293902,9.65986472,2547.0,2546.6,0.21945954]
[1748120294398,9.65986472,2547.0,2546.7,0.21945954]
[1748120294612,0.96598647,2546.9,2546.8,11.752]
[1748120296740,2.5383021,2546.9,2546.8,11.752]
[1748120300047,2.5383021,2546.9,2546.5,1.84623536]
[1748120300441,6.12,2546.8,2546.7,1.84623536]
[1748120301158,6.12,2546.8,2546.7,2.06576429]
[1748120304162,6.12,2547.1,2546.7,2.06576429]
[1748120304369,6.12,2547.1,2547.0,1.84623536]
[1748120305272,6.12,2547.1,2547.0,2.06576429]
[1748120306973,7.692621,2547.1,2547.0,2.06576429]
[1748120309073,9.5684031,2547.1,2547.0,11.97252893]
[1748120309371,9.5684031,2547.1,2547.0,26.41852893]
[1748120309563,9.5684031,2547.1,2547.0,26.199]
[1748120312275,9.5684031,2547.1,2546.9,1.84623536]
[1748120313399,9.5684031,2547.1,2547.0,11.753]
[1748120313578,7.692621,2547.1,2547.0,11.753]
[1748120314505,7.692621,2547.1,2547.0,11.97276494]
[1748120314703,7.692621,2547.1,2546.9,0.75400526]
[1748120316005,7.692621,2547.1,2547.0,11.753]
[1748120316194,7.692621,2547.1,2547.0,13.59923536]
[1748120316709,7.692621,2547.1,2547.0,11.753]
[1748120316866,7.692621,2547.1,2547.0,13.95613536]
[1748120319282,7.692621,2547.1,2547.0,51.91013536]
[1748120321123,7.692621,2547.1,2547.0,11.752]
[1748120324225,7.692621,2547.1,2546.9,0.75400526]
[1748120324431,7.692621,2547.1,2547.0,11.752]
[1748120329157,7.692621,2547.1,2547.0,49.705]
[1748120332557,7.692621,2547.1,2547.0,11.752]
[1748120335147,7.692621,2547.1,2547.0,1.84623536]
[1748120335322,8.4618831,2547.1,2547.0,1.84623536]
[1748120336382,8.4618831,2547.1,2547.0,13.59823536]
[1748120339242,8.4618831,2547.1,2547.0,51.55123536]
[1748120340174,9.2667831,2547.1,2546.5,0.3569]
[1748120340393,9.2667831,2547.1,2546.9,1.84623536]
[1748120340573,1.73957831,2547.0,2546.9,1.84623536]
[1748120341050,1.73957831,2547.0,2546.9,13.59823536]
[1748120343875,5.4122462,2547.0,2546.9,13.59823536]
[1748120345270,11.5322462,2547.0,2546.9,13.59823536]
[1748120346078,11.5322462,2547.0,2546.9,1.84623536]
[1748120346280,11.5322462,2547.0,2546.9,13.59923536]
[1748120349194,11.5322462,2547.0,2546.9,51.53123536]
[1748120349893,11.5322462,2547.0,2546.9,28.02623536]
[1748120350071,9.79266789,2547.0,2546.9,28.02623536]
[1748120352097,9.79266789,2547.0,2546.9,13.59923536]
[1748120354398,7.692621,2547.0,2546.9,13.59923536]
[1748120359209,7.692621,2547.0,2546.9,51.53123536]
[1748120359406,9.5653731,2547.0,2546.9,51.53123536]
[1748120362574,9.5653731,2547.0,2546.9,13.59923536]
[1748120364406,7.692621,2547.0,2546.9,13.59923536]
[1748120365671,7.692621,2547.0,2546.9,13.96601744]
[1748120367279,7.692621,2547.0,2546.9,13.96605445]
[1748120369215,7.692621,2547.0,2546.9,51.89905445]
[1748120370914,7.692621,2547.0,2546.9,28.39305445]
[1748120374904,7.692621,2547.0,2546.9,13.96605445]
[1748120378838,7.692621,2547.0,2546.9,12.65414317]
[1748120379135,7.692621,2547.0,2546.9,50.54314317]
[1748120379340,7.692621,2547.0,2546.9,27.03814317]
[1748120380303,7.692621,2547.0,2546.9,12.65414317]
[1748120382149,7.692621,2547.0,2546.9,12.65429071]
[1748120386057,7.692621,2547.0,2546.9,14.85742607]
[1748120386558,1.572621,2547.0,2546.9,14.85742607]
[1748120389288,1.572621,2547.0,2546.9,29.24042607]
[1748120391380,1.572621,2547.0,2546.9,14.85742607]
[1748120392347,6.12,2547.4,2546.9,3.10442607]
[1748120392683,6.12,2547.5,2547.3,1.84623536]
[1748120392871,0.69513,2547.4,2547.0,12.11896663]
[1748120393071,0.69513,2547.4,2547.0,11.752]
[1748120393581,0.69513,2547.4,2547.1,0.36651654]
[1748120394285,0.69513,2547.4,2547.3,1.47561675]
[1748120394779,0.69513,2547.4,2547.3,1.84213329]
[1748120396755,2.2696469,2547.4,2547.3,1.84213329]
[1748120398486,8.3896469,2547.4,2547.3,1.84213329]
[1748120399185,8.3896469,2547.4,2547.3,39.72613329]
[1748120399389,8.3896469,2547.4,2547.3,38.41440971]
[1748120400382,8.3896469,2547.4,2547.3,0.53040971]
[1748120400589,8.3896469,2547.4,2547.3,12.28140971]
[1748120401613,2.2696469,2547.4,2547.3,12.28140971]
[1748120401917,1.5745169,2547.4,2547.3,12.28140971]
[1748120405390,1.5745169,2547.4,2547.3,0.53040971]
[1748120405591,1.5745169,2547.4,2547.3,12.28140971]
[1748120405810,1.5745169,2547.4,2547.3,12.63830971]
[1748120406429,3.2443706,2547.9,2547.3,12.63830971]
[1748120406637,3.2443706,2547.9,2547.8,1.47561675]
[1748120406834,3.65050766,2547.9,2547.8,1.47561675]
[1748120407007,3.65050766,2547.9,2547.8,1.84213329]
[1748120407214,3.02593543,2547.9,2547.8,1.84213329]
[1748120407529,3.81393543,2547.9,2547.8,13.59313329]
[1748120407736,3.81393543,2547.9,2547.8,13.81291446]
[1748120409141,3.81393543,2547.9,2547.8,51.67791446]
[1748120409700,3.40779837,2547.9,2547.8,51.67791446]
[1748120409935,3.40779837,2547.9,2547.8,50.20229771]
[1748120410116,3.40779837,2547.9,2547.8,51.67791446]
[1748120410316,3.40779837,2547.9,2547.8,13.81191446]
[1748120411636,0.838,2547.9,2547.8,13.81191446]
[1748120414147,0.05,2547.9,2547.8,14.16881446]
[1748120414353,0.05,2547.9,2547.8,13.81191446]
[1748120416211,6.17,2547.9,2547.8,13.81191446]
[1748120417652,6.17,2547.9,2547.8,14.18018075]
[1748120419165,6.17,2547.9,2547.8,52.04118075]
[1748120419844,6.17,2547.9,2547.8,38.97971139]
[1748120420047,6.17,2547.9,2547.8,15.48171139]
[1748120420863,6.17,2547.9,2547.8,27.23071139]
[1748120421068,6.17,2547.9,2547.8,12.86771139]
[1748120421764,6.17,2547.9,2547.8,1.11871139]
[1748120421933,6.86756,2547.9,2547.8,12.86771139]
[1748120422134,8.43915828,2547.9,2547.8,12.86771139]
[1748120423389,8.43915828,2547.9,2547.8,1.11871139]
[1748120423562,8.43915828,2547.9,2547.8,11.749]
[1748120425644,8.43915828,2547.9,2547.3,0.3569]
[1748120425645,0.7791,2547.8,2547.3,1.84388304]
[1748120425848,0.7791,2547.6,2547.4,11.749]
[1748120426351,0.7791,2547.6,2547.5,1.84388304]
[1748120426573,0.7791,2547.6,2547.5,13.59288304]
[1748120427082,6.12,2547.7,2547.5,13.59288304]
[1748120427262,0.77809158,2547.6,2547.5,13.59288304]
[1748120428178,2.34968986,2547.6,2547.5,13.59288304]
[1748120429178,2.34968986,2547.6,2547.5,51.45288304]
[1748120429355,1.57159828,2547.6,2547.5,51.45288304]
[1748120429874,1.57159828,2547.6,2547.5,16.20588304]
[1748120430076,1.57159828,2547.6,2547.5,27.95488304]
[1748120431863,1.57159828,2547.6,2547.5,13.59288304]
[1748120432067,1.57159828,2547.6,2547.5,13.81266837]
[1748120432268,2.42514969,2547.6,2547.5,13.81266837]
[1748120436807,8.54514969,2547.6,2547.5,13.81266837]
[1748120437780,8.54514969,2547.6,2547.5,13.4442596]
[1748120439158,8.54514969,2547.6,2547.5,51.3122596]
[1748120440358,8.54514969,2547.6,2547.5,27.8122596]
[1748120441662,8.54514969,2547.6,2547.5,14.75160325]
[1748120441830,8.54514969,2547.6,2547.5,0.38360325]
[1748120442930,8.54514969,2547.6,2547.5,12.13360325]
[1748120443461,8.54514969,2547.6,2547.5,0.38360325]
[1748120443670,8.54514969,2547.6,2547.5,12.13360325]
[1748120449154,8.54514969,2547.6,2547.5,50.00360325]
[1748120451586,8.54514969,2547.6,2547.5,12.13360325]
[1748120459112,8.54514969,2547.6,2547.5,18.71360325]
[1748120459305,8.54514969,2547.6,2547.5,50.00360325]
[1748120460711,8.54514969,2547.6,2547.5,12.13460325]
[1748120461909,8.54514969,2547.6,2547.5,1.47547427]
[1748120463210,8.54514969,2547.6,2547.5,13.22647427]
[1748120469089,8.54514969,2547.6,2547.5,36.72747427]
[1748120469297,8.54514969,2547.6,2547.5,51.09147427]
[1748120469602,19.58674969,2547.6,2547.2,1.47547427]
[1748120469803,0.7916,2547.4,2547.0,1.47547427]
[1748120470007,0.7916,2547.4,2547.3,11.751]
[1748120473282,7.03198476,2547.4,2547.3,11.751]
[1748120473795,7.03198476,2547.4,2547.2,1.47547427]
[1748120474920,6.12,2547.3,2547.2,1.47547427]
[1748120475228,7.68606597,2547.3,2547.2,13.22647427]
[1748120477022,11.35665236,2547.3,2547.2,13.22647427]
[1748120479341,11.35665236,2547.3,2547.2,51.09447427]
[1748120481387,9.79058639,2547.3,2547.2,51.09447427]
[1748120482043,7.69159828,2547.3,2547.2,51.09447427]
[1748120482193,7.69159828,2547.3,2547.2,13.22647427]
[1748120482827,7.69159828,2547.3,2547.2,11.91461473]
[1748120486930,7.69159828,2547.3,2547.2,13.390089]
[1748120487152,7.69159828,2547.3,2547.2,13.746989]
[1748120488902,1.57159828,2547.3,2547.2,13.746989]
[1748120489097,1.57159828,2547.3,2547.2,28.111989]
[1748120490851,1.57159828,2547.3,2547.2,28.47842118]
[1748120491863,3.54543386,2547.3,2547.2,28.47842118]
[1748120493110,3.54543386,2547.3,2547.2,14.11342118]
[1748120496818,1.97383558,2547.6,2547.3,0.3569]
[1748120497014,1.97383558,2547.6,2547.5,1.47547427]
[1748120497423,1.97383558,2547.6,2547.5,13.22547427]
[1748120497609,1.97383558,2547.6,2547.5,13.59190645]
[1748120497811,1.97383558,2547.6,2547.5,1.84190645]
[1748120498002,2.78321914,2547.6,2547.5,1.84190645]
[1748120498217,3.53591914,2547.6,2547.5,13.59190645]
[1748120498456,5.10925824,2547.6,2547.5,13.59190645]
[1748120498609,11.22925824,2547.6,2547.5,13.59190645]
[1748120499235,11.22925824,2547.6,2547.5,51.45590645]
[1748120499634,11.22925824,2547.6,2547.5,49.98043218]
[1748120500147,9.25542266,2547.6,2547.5,49.98043218]
[1748120500447,9.25542266,2547.6,2547.5,0.36643218]
[1748120500834,9.25542266,2547.6,2547.5,12.11643218]
[1748120504952,9.25542266,2547.6,2547.4,0.89921072]
[1748120505161,1.95054227,2547.5,2547.4,0.89921072]